bitfinex-derivatives/quotes_SOLF0:USTF0_20250923
["timestamp","ask_amount","ask_price","bid_price","bid_amount"]
[1758666259790,4.1684,215.84,215.8,7.44]
[1758666259994,4.1684,215.84,215.79,3.90476553]
[1758666260499,4.1684,215.84,215.8,7.44]
[1758666261095,4.168,215.86,215.8,3.90476553]
[1758666261600,1.30940388,215.87,215.81,7.44]
[1758666262392,1.30940388,215.87,215.8,3.90476553]
[1758666262393,4.1683,215.85,215.8,3.90476553]
[1758666263402,4.1683,215.85,215.81,7.71]
[1758666263698,4.1683,215.85,215.8,3.90476553]
[1758666264201,4.1683,215.85,215.81,7.71]
[1758666264395,4.1683,215.85,215.8,3.90476553]
[1758666264598,4.1683,215.85,215.81,7.71]
[1758666264989,4.1683,215.85,215.8,3.90476553]
[1758666265202,4.1683,215.85,215.81,7.71]
[1758666266002,4.1683,215.85,215.8,3.90476553]
[1758666266406,4.1683,215.85,215.81,7.71]
[1758666266803,4.1683,215.85,215.8,3.90476553]
[1758666267310,4.1683,215.85,215.81,7.71]
[1758666267702,4.1683,215.85,215.8,3.90476553]
[1758666267902,4.1683,215.85,215.81,7.71]
[1758666268204,4.1683,215.85,215.8,3.90476553]
[1758666268401,4.1683,215.85,215.81,7.71]
[1758666268600,4.1683,215.85,215.8,3.90476553]
[1758666269210,4.1683,215.85,215.81,7.71]
[1758666269699,4.1683,215.85,215.8,3.90476553]
[1758666270103,4.1683,215.85,215.81,7.71]
[1758666270302,4.1683,215.85,215.8,3.90476553]
[1758666270705,4.1683,215.85,215.81,7.71]
[1758666270911,4.1683,215.85,215.8,3.90476553]
[1758666272309,4.1683,215.85,215.81,7.71]
[1758666272808,4.1683,215.85,215.8,3.90476553]
[1758666273504,4.1683,215.85,215.81,7.71]
[1758666273698,4.1683,215.85,215.8,3.90476553]
[1758666274702,4.1683,215.85,215.81,7.71]
[1758666275104,4.1683,215.85,215.8,3.90476553]
[1758666276010,4.1683,215.85,215.81,7.71]
[1758666276913,4.1683,215.85,215.8,3.90476553]
[1758666277104,4.1683,215.85,215.81,7.71]
[1758666279612,4.1683,215.85,215.8,3.90476553]
[1758666280109,4.1683,215.85,215.81,7.71]
[1758666280310,4.1683,215.85,215.8,3.90476553]
[1758666280910,4.1683,215.85,215.81,7.71]
[1758666281111,4.1683,215.85,215.8,3.90476553]
[1758666281415,4.1683,215.85,215.81,7.71]
[1758666281610,4.1683,215.85,215.8,3.90476553]
[1758666281917,4.1683,215.85,215.82,7.71]
[1758666282104,4.1683,215.85,215.81,7.71]
[1758666282306,4.1683,215.85,215.8,3.90476553]
[1758666282502,4.1683,215.85,215.81,7.71]
[1758666282812,4.1683,215.85,215.8,3.90476553]
[1758666283014,4.1683,215.85,215.81,7.71]
[1758666283717,4.1683,215.85,215.8,3.90476553]
[1758666283902,4.1683,215.85,215.81,7.71]
[1758666284106,4.1683,215.85,215.8,3.90476553]
[1758666284308,4.1683,215.85,215.81,7.71]
[1758666284615,4.1683,215.85,215.8,3.90476553]
[1758666285011,4.1683,215.85,215.81,7.71]
[1758666285212,4.1683,215.85,215.8,3.90476553]
[1758666285614,4.1678,215.87,215.81,7.71]
[1758666286217,4.1681,215.86,215.81,7.71]
[1758666287413,4.1681,215.86,215.8,8.07386553]
[1758666288414,4.1681,215.86,215.81,7.71]
[1758666288610,4.1681,215.86,215.8,8.07386553]
[1758666289118,4.1681,215.86,215.81,7.71]
[1758666289613,4.1681,215.86,215.8,8.07386553]
[1758666290219,4.1681,215.86,215.81,7.71]
[1758666290718,4.1681,215.86,215.8,8.07386553]
[1758666291114,4.1681,215.86,215.81,7.71]
[1758666291513,4.1681,215.86,215.8,8.07386553]
[1758666291713,4.1681,215.86,215.81,7.71]
[1758666292211,4.1683,215.85,215.8,3.90476553]
[1758666292616,4.1683,215.85,215.81,7.71]
[1758666292817,4.1683,215.85,215.8,3.90476553]
[1758666293219,4.1683,215.85,215.81,7.08]
[1758666293516,4.1683,215.85,215.8,3.90476553]
[1758666294116,4.1683,215.85,215.81,7.08]
[1758666294311,4.1683,215.85,215.8,3.90476553]
[1758666294514,4.1683,215.85,215.81,7.08]
[1758666295223,4.1683,215.85,215.8,3.90476553]
[1758666295518,4.1683,215.85,215.81,7.08]
[1758666296318,4.1683,215.85,215.8,3.90476553]
[1758666296511,4.1683,215.85,215.81,7.08]
[1758666296714,4.1683,215.85,215.8,3.90476553]
[1758666296914,4.1683,215.85,215.81,7.08]
[1758666297120,64.8362,215.86,215.78,10.98476553]
[1758666297319,64.8362,215.86,215.78,3.90476553]
[1758666297517,64.8362,215.86,215.77,3.90476553]
[1758666297712,64.8391,215.85,215.77,3.90476553]
[1758666298426,64.8391,215.85,215.78,3.90476553]
[1758666299918,64.8391,215.85,215.79,7.08]
[1758666299919,4.169,215.81,215.79,7.08]
[1758666300726,4.169,215.81,215.78,10.98476553]
[1758666300927,4.1693,215.8,215.78,7.08]
[1758666301320,4.1693,215.8,215.72,7.7343132]
[1758666301321,4.1695,215.78,215.76,3.90476553]
[1758666301623,4.1695,215.78,215.74,10.98476553]
[1758666302022,4.1695,215.78,215.75,7.08]
[1758666302625,64.8543,215.8,215.73,3.90476553]
[1758666303330,64.8543,215.8,215.72,3.90476553]
[1758666304334,64.8572,215.79,215.71,3.90476553]
[1758666304823,64.8572,215.79,215.69,10.98476553]
[1758666305224,112.84,215.78,215.69,10.98476553]
[1758666305627,64.8641,215.77,215.69,10.98476553]
[1758666305931,4.1708,215.71,215.69,7.08]
[1758666306631,4.1708,215.71,215.67,7.08]
[1758666306828,4.1708,215.71,215.66,3.90476553]
[1758666307130,4.1708,215.71,215.67,7.08]
[1758666307335,4.1712,215.69,215.65,7.08]
[1758666307520,4.1712,215.69,215.62,5.95168885]
[1758666307720,4.1712,215.69,215.63,7.08]
[1758666309134,18.18293275,215.69,215.63,7.08]
[1758666310544,14.01173275,215.69,215.63,7.08]
[1758666310838,4.1708,215.72,215.63,7.08]
[1758666311740,4.1703,215.74,215.65,7.08]
[1758666311932,64.8418,215.84,215.61,64.9098]
[1758666311933,20.1,215.78,215.67,2.04692332]
[1758666312138,20.1,215.78,215.68,7.08]
[1758666313134,20.1,215.78,215.62,3.90476553]
[1758666313335,64.8745,215.73,215.59,7.05]
[1758666313534,66.92142332,215.73,215.59,7.05]
[1758666313942,4.1712,215.69,215.6,7.05]
[1758666314750,64.9229,215.57,215.47,7.05]
[1758666314936,64.9289,215.55,215.47,7.05]
[1758666315939,4.1745,215.52,215.47,7.05]
[1758666316351,4.1745,215.52,215.4,4.1767]
[1758666316541,4.1745,215.52,215.41,7.05]
[1758666319353,4.1741,215.55,215.42,4.1764]
[1758666319550,113.54,215.56,215.43,7.05]
[1758666321747,4.1742,215.54,215.43,7.05]
[1758666323156,113.54,215.56,215.45,7.05]
[1758666323350,4.1737,215.57,215.45,7.05]
[1758666323553,115.2,215.56,215.45,7.05]
[1758666324252,2.04692332,215.58,215.45,7.05]
[1758666324253,4.1739,215.55,215.45,7.05]
[1758666327461,4.1739,215.55,215.46,7.72]
[1758666333473,4.1733,215.57,215.45,7.72]
[1758666333969,4.1729,215.59,215.48,4.1748]
[1758666334261,20.52,215.6,215.49,7.72]
[1758666334664,4.1732,215.58,215.49,7.72]
[1758666335061,20.52,215.6,215.49,7.72]
[1758666335263,1.16009469,215.59,215.49,7.72]
[1758666335463,4.1736,215.56,215.49,7.72]
[1758666336371,4.173,215.58,215.49,11.8946]
[1758666336571,64.893,215.65,215.5,7.72]
[1758666336771,1.15989601,215.64,215.52,2.04692332]
[1758666336962,1.15989601,215.63,215.53,7.72]
[1758666337163,64.8911,215.66,215.53,7.72]
[1758666337367,1.15990256,215.65,215.53,7.72]
[1758666337574,1.15990256,215.64,215.53,7.72]
[1758666337774,4.1725,215.61,215.53,11.8939]
[1758666338074,4.1725,215.61,215.54,7.72]
[1758666339375,4.1721,215.63,215.55,7.72]
[1758666339779,114.58,215.67,215.55,7.72]
[1758666339973,1.15984041,215.66,215.55,7.72]
[1758666340174,1.15984041,215.65,215.55,7.72]
[1758666340475,1.15984041,215.64,215.55,7.72]
[1758666340772,4.1724,215.62,215.55,7.72]
[1758666341275,1.1598712,215.61,215.55,7.72]
[1758666341480,4.1724,215.62,215.55,7.72]
[1758666341671,1.15987108,215.61,215.55,7.72]
[1758666341872,4.1724,215.62,215.55,7.72]
[1758666342077,4.1724,215.62,215.56,7.72]
[1758666343276,1.15983184,215.61,215.56,7.72]
[1758666343475,4.1724,215.62,215.56,7.72]
[1758666343678,1.15984724,215.61,215.55,4.1734]
[1758666343978,4.1725,215.61,215.56,7.72]
[1758666344175,4.1725,215.61,215.53,7.72]
[1758666344374,1.15986276,215.6,215.53,7.72]
[1758666344574,4.1725,215.61,215.53,7.72]
[1758666344784,1.15987793,215.6,215.53,7.72]
[1758666344982,4.1725,215.61,215.55,7.72]
[1758666345278,1.15986265,215.6,215.54,4.1738]
[1758666345478,4.1725,215.61,215.55,7.72]
[1758666345675,1.15986265,215.6,215.55,7.72]
[1758666345874,4.1725,215.61,215.55,7.72]
[1758666346275,4.1725,215.61,215.49,7.72]
[1758666346276,4.1736,215.55,215.49,7.72]
[1758666346481,64.9118,215.59,215.49,7.72]
[1758666346682,66.07476855,215.58,215.49,7.72]
[1758666346880,1.16016855,215.57,215.49,7.72]
[1758666347291,64.9252,215.55,215.44,7.72]
[1758666347588,1.16016855,215.54,215.44,7.72]
[1758666348184,4.175,215.48,215.42,7.72]
[1758666350901,4.1745,215.5,215.42,7.72]
[1758666351397,4.1745,215.5,215.43,7.72]
[1758666352899,4.1742,215.52,215.43,7.72]
[1758666353100,1.16035594,215.51,215.43,7.72]
[1758666353299,4.1742,215.52,215.43,7.72]
[1758666353500,1.16035594,215.51,215.43,7.72]
[1758666353800,4.1742,215.52,215.43,7.72]
[1758666353995,1.16035594,215.51,215.43,7.72]
[1758666354198,4.1742,215.52,215.43,7.72]
[1758666354501,5.48817679,215.54,215.44,7.63]
[1758666354701,1.16026367,215.53,215.44,7.63]
[1758666354901,1.16026367,215.52,215.44,7.63]
[1758666355098,5.48817679,215.54,215.44,7.63]
[1758666355397,1.1602639,215.53,215.44,7.63]
[1758666355603,5.48817679,215.54,215.44,7.63]
[1758666355804,1.16025544,215.53,215.45,7.63]
[1758666356106,1.31437679,215.54,215.45,7.63]
[1758666356306,1.16025555,215.53,215.45,7.63]
[1758666356602,1.31437679,215.54,215.45,7.63]
[1758666356805,4.1744,215.52,215.45,7.63]
[1758666357004,1.31437679,215.54,215.45,7.63]
[1758666357306,1.16026463,215.53,215.45,7.63]
[1758666357604,1.31437679,215.54,215.45,7.63]
[1758666357605,1.16026463,215.52,215.45,7.63]
[1758666357804,4.1745,215.51,215.45,7.63]
[1758666358193,4.1745,215.51,215.44,5.1562088]
[1758666358194,1.31437679,215.51,215.44,5.1562088]
[1758666358803,4.1747,215.5,215.44,12.7862088]
[1758666359604,4.1747,215.5,215.44,7.63]
[1758666359900,1.31437679,215.48,215.41,7.63]
[1758666360104,1.16051778,215.47,215.41,7.63]
[1758666360606,4.1759,215.44,215.4,7.63]
[1758666360806,4.1759,215.44,215.39,5.1562088]
[1758666361706,1.31437679,215.45,215.37,5.1562088]
[1758666361906,1.31437679,215.45,215.36,5.1562088]
[1758666362103,1.31437679,215.45,215.37,7.63]
[1758666362496,1.31437679,215.45,215.35,7.63]
[1758666362808,1.31437679,215.45,215.37,7.63]
[1758666363806,4.1758,215.44,215.37,7.63]
[1758666364003,1.31437679,215.45,215.37,7.63]
[1758666364505,4.1759,215.44,215.37,7.63]
[1758666367708,5.48967679,215.46,215.36,7.63]
[1758666368907,1.31437679,215.43,215.34,7.63]
[1758666369106,1.31437679,215.4,215.31,7.63]
[1758666369308,1.31437679,215.37,215.31,7.63]
[1758666371012,64.9573,215.44,215.31,7.63]
[1758666371013,1.31437679,215.39,215.31,7.63]
[1758666371203,1.31437679,215.41,215.31,7.63]
[1758666371410,1.31437679,215.42,215.33,7.63]
[1758666372008,1.31437679,215.42,215.36,4.1772]
[1758666372312,1.31437679,215.45,215.37,7.54]
[1758666373816,5.48997679,215.45,215.37,7.54]
[1758666374816,4.1759,215.44,215.37,7.54]
[1758666377015,4.1759,215.44,215.37,11.717]
[1758666379521,4.1759,215.44,215.37,7.54]
[1758666379818,4.1762,215.42,215.37,7.54]
[1758666380018,4.1762,215.42,215.36,7.54]
[1758666382822,4.1762,215.42,215.36,4.1772]
[1758666383321,4.1762,215.42,215.37,7.17]
[1758666383524,4.1762,215.42,215.36,4.1772]
[1758666383927,4.1762,215.42,215.37,7.17]
[1758666384118,4.1762,215.42,215.36,4.1772]
[1758666385028,4.1762,215.42,215.37,7.17]
[1758666385630,4.1762,215.42,215.36,4.1772]
[1758666385829,4.1762,215.42,215.37,7.17]
[1758666386526,4.1762,215.42,215.36,7.17]
[1758666386923,64.9573,215.44,215.31,1.31437679]
[1758666387131,1.31437679,215.42,215.32,7.17]
[1758666387629,4.1771,215.38,215.32,7.17]
[1758666396033,4.1771,215.38,215.32,8.48437679]
[1758666403438,4.1771,215.38,215.32,7.17]
[1758666409337,4.1771,215.38,215.32,11.04815982]
[1758666409845,4.1771,215.38,215.33,7.17]
[1758666410044,4.1771,215.38,215.32,3.87815982]
[1758666410938,4.1771,215.38,215.33,7.17]
[1758666411335,1.31437679,215.41,215.33,7.17]
[1758666411542,1.16114492,215.4,215.33,7.17]
[1758666411742,1.16114492,215.39,215.33,7.17]
[1758666412045,1.31437679,215.41,215.33,7.17]
[1758666412242,1.16116015,215.4,215.33,7.17]
[1758666412539,1.16116015,215.39,215.33,7.17]
[1758666412734,4.1769,215.39,215.34,7.17]
[1758666413238,4.1769,215.39,215.33,4.1778]
[1758666413437,4.1769,215.39,215.33,8.05595982]
[1758666413645,4.1769,215.39,215.34,7.5]
[1758666413846,5.49077679,215.41,215.34,11.6776]
[1758666414049,1.16114448,215.4,215.35,7.5]
[1758666414346,1.16114448,215.39,215.34,4.1776]
[1758666414540,114.2,215.44,215.35,7.5]
[1758666414742,1.16114439,215.43,215.35,7.5]
[1758666415046,1.16114439,215.42,215.35,7.5]
[1758666415242,1.16114439,215.41,215.35,7.5]
[1758666415446,1.16114439,215.4,215.35,7.5]
[1758666415743,1.16114439,215.39,215.34,4.1776]
[1758666415946,4.1767,215.4,215.34,4.1776]
[1758666416248,1.16112874,215.39,215.34,4.1776]
[1758666416444,4.1767,215.4,215.34,4.1776]
[1758666416744,1.16112874,215.39,215.35,7.5]
[1758666416949,4.1768,215.39,215.35,7.5]
[1758666417945,4.1768,215.39,215.34,4.1776]
[1758666418245,4.1768,215.39,215.35,7.5]
[1758666419140,114.1,215.44,215.35,7.5]
[1758666419449,1.16112863,215.43,215.35,7.5]
[1758666419645,1.16112863,215.42,215.35,7.5]
[1758666419846,1.16112863,215.41,215.35,7.5]
[1758666420042,1.16112863,215.4,215.34,4.1776]
[1758666420243,1.16112863,215.4,215.33,3.87815982]
[1758666420244,1.16112863,215.39,215.35,11.6774]
[1758666420545,70.13708812,215.49,215.36,7.5]
[1758666420849,42.62107283,215.48,215.36,7.5]
[1758666421042,1.16107283,215.47,215.36,7.5]
[1758666421237,72.19284247,215.49,215.36,7.5]
[1758666421238,4.1757,215.45,215.38,4.1768]
[1758666421451,4.1757,215.45,215.36,7.5]
[1758666421452,1.16107283,215.44,215.39,7.5]
[1758666421647,1.16107283,215.43,215.37,7.5]
[1758666421846,1.16107283,215.42,215.38,7.5]
[1758666422049,0.4138676,215.5,215.38,7.5]
[1758666422246,115.32096228,215.49,215.38,7.5]
[1758666422445,114.16,215.49,215.38,7.5]
[1758666422644,4.1755,215.46,215.38,4.1768]
[1758666422847,4.1755,215.46,215.39,7.5]
[1758666423348,4.1757,215.45,215.39,7.5]
[1758666424251,4.1752,215.47,215.4,7.5]
[1758666424643,114.16,215.49,215.4,7.5]
[1758666425848,64.9452,215.48,215.38,7.5]
[1758666426355,4.1756,215.45,215.38,7.5]
[1758666426747,118.2352,215.47,215.39,7.5]
[1758666426947,114.06,215.47,215.39,7.5]
[1758666427251,454.97266951,215.51,215.39,7.5]
[1758666427451,114.06,215.5,215.39,7.5]
[1758666427654,4.1755,215.46,215.39,7.5]
[1758666429651,4.1755,215.46,215.4,7.5]
[1758666431452,4.1757,215.45,215.4,7.5]
[1758666431655,114.06,215.5,215.4,7.5]
[1758666432242,64.9479,215.47,215.37,7.44]
[1758666433751,4.1762,215.42,215.37,7.44]
[1758666433953,4.1762,215.42,215.36,7.44]
[1758666434860,4.1764,215.41,215.36,7.44]
[1758666435152,4.1764,215.41,215.35,15.52922764]
[1758666436347,64.9609,215.43,215.35,7.44]
[1758666436549,64.9609,215.43,215.33,3.91182764]
[1758666436948,113.98,215.42,215.34,7.44]
[1758666437848,4.1769,215.39,215.33,3.91182764]
[1758666438045,113.96,215.42,215.34,7.44]
[1758666438249,113.96,215.44,215.34,7.44]
[1758666439054,4.1766,215.4,215.34,7.44]
[1758666441558,4.1766,215.4,215.34,11.6177]
[1758666441865,113.94,215.44,215.35,7.44]
[1758666442460,113.92,215.45,215.35,7.44]
[1758666442764,4.1758,215.44,215.37,4.1771]
[1758666442953,113.92,215.45,215.38,7.44]
[1758666443760,4.1763,215.42,215.38,7.44]
[1758666443957,4.1763,215.42,215.36,7.56]
[1758666444154,113.92,215.45,215.36,7.56]
[1758666444859,4.1767,215.4,215.35,3.91182764]
[1758666445165,64.9603,215.43,215.32,3.91182764]
[1758666445463,4.177,215.38,215.32,3.91182764]
[1758666445665,4.177,215.38,215.32,11.47182764]
[1758666446058,4.1772,215.37,215.32,11.47182764]
[1758666447157,4.1772,215.37,215.32,3.91182764]
[1758666447358,4.1778,215.34,215.3,3.91182764]
[1758666447559,64.9724,215.39,215.2,73.389]
[1758666447560,178.9351,215.38,215.29,11.47182764]
[1758666447760,1.16133404,215.37,215.29,11.47182764]
[1758666447960,1.16133404,215.36,215.29,11.47182764]
[1758666448162,1.16133404,215.35,215.29,11.47182764]
[1758666448362,178.9351,215.38,215.29,11.47182764]
[1758666448664,2.32263886,215.37,215.29,11.47182764]
[1758666448863,4.178,215.33,215.3,7.56]
[1758666451259,2.05575435,215.42,215.29,7.56]
[1758666451464,98.74269888,215.41,215.3,7.56]
[1758666451663,2.32269888,215.4,215.3,7.56]
[1758666451863,4.1774,215.36,215.3,7.56]
[1758666452063,1.16134944,215.35,215.3,7.56]
[1758666452266,4.1774,215.36,215.3,7.56]
[1758666452462,1.16131835,215.35,215.3,7.56]
[1758666452666,4.1774,215.36,215.3,7.56]
[1758666452865,1.16131835,215.35,215.3,7.56]
[1758666453067,4.1774,215.36,215.31,7.56]
[1758666453368,4.177,215.38,215.31,7.56]
[1758666453571,1.16127921,215.37,215.31,7.56]
[1758666453772,1.16127921,215.36,215.3,4.1783]
[1758666454073,4.177,215.38,215.31,7.56]
[1758666454275,1.16127921,215.37,215.31,7.56]
[1758666454468,1.16127921,215.36,215.31,7.56]
[1758666454667,4.177,215.38,215.31,7.56]
[1758666454874,1.16127921,215.37,215.31,7.56]
[1758666455171,4.177,215.38,215.3,4.1783]
[1758666455373,1.161279,215.37,215.31,7.56]
[1758666455673,4.177,215.38,215.31,7.56]
[1758666455862,1.16127889,215.37,215.31,7.56]
[1758666456067,4.1772,215.37,215.31,7.56]
[1758666456761,2.05575435,215.42,215.31,7.56]
[1758666456972,1.16125359,215.41,215.32,7.56]
[1758666457173,1.16125359,215.4,215.32,7.56]
[1758666457368,1.16125359,215.39,215.32,7.56]
[1758666457675,4.1764,215.41,215.36,7.56]
[1758666457873,1.16113077,215.4,215.36,7.56]
[1758666458068,4.1764,215.41,215.36,7.56]
[1758666458374,1.16112217,215.4,215.35,4.1774]
[1758666458569,4.1764,215.41,215.36,7.56]
[1758666458770,1.16112217,215.4,215.35,4.1774]
[1758666458978,4.1764,215.41,215.35,4.1774]
[1758666459177,1.16112217,215.4,215.35,4.1774]
[1758666459473,4.1764,215.41,215.36,7.56]
[1758666459668,1.16112217,215.4,215.35,4.1774]
[1758666459870,4.1764,215.41,215.35,4.1774]
[1758666460070,1.16112217,215.4,215.36,7.56]
[1758666460271,4.1764,215.41,215.36,7.56]
[1758666460467,1.16112217,215.4,215.36,7.56]
[1758666460667,5.33792217,215.39,215.33,7.56]
[1758666460874,4.1768,215.39,215.33,7.56]
[1758666461265,4.1768,215.39,215.32,4.178]
[1758666461266,1.1611779,215.38,215.32,7.56]
[1758666461472,112.34,215.42,215.32,7.56]
[1758666461675,1.16116989,215.41,215.32,7.56]
[1758666461872,1.16116989,215.4,215.33,7.56]
[1758666462074,1.16116989,215.39,215.33,7.56]
[1758666462274,113.84,215.41,215.33,7.56]
[1758666462477,1.16116977,215.4,215.33,7.56]
[1758666462676,1.16116977,215.39,215.33,7.56]
[1758666462877,113.84,215.41,215.33,7.56]
[1758666463078,1.16117035,215.4,215.33,7.56]
[1758666463277,1.16117035,215.39,215.33,7.56]
[1758666463482,113.84,215.41,215.33,7.56]
[1758666463777,4.177,215.38,215.33,7.56]
[1758666463973,4.177,215.38,215.32,7.56]
[1758666467284,4.1772,215.37,215.32,7.56]
[1758666467981,4.1772,215.37,215.31,8.09002764]
[1758666468177,4.1772,215.37,215.32,7.56]
[1758666469380,4.1772,215.37,215.31,8.09002764]
[1758666469578,4.1772,215.37,215.32,7.56]
[1758666469980,4.1772,215.37,215.31,8.09002764]
[1758666470484,4.1772,215.37,215.32,7.56]
[1758666470680,4.1772,215.37,215.31,8.09002764]
[1758666470884,4.1772,215.37,215.32,7.56]
[1758666471087,4.1772,215.37,215.31,8.09002764]
[1758666471275,4.1772,215.37,215.32,7.56]
[1758666473287,4.1772,215.37,215.33,7.32]
[1758666473487,4.1772,215.37,215.32,4.178]
[1758666473684,4.1772,215.37,215.32,8.08982764]
[1758666473885,4.1768,215.39,215.33,7.32]
[1758666474084,1.16115468,215.38,215.32,8.08982764]
[1758666474289,4.1768,215.39,215.33,7.32]
[1758666474592,1.16115457,215.38,215.32,8.08982764]
[1758666474888,4.1768,215.39,215.33,7.32]
[1758666475089,1.16115445,215.38,215.33,7.32]
[1758666475285,4.1768,215.39,215.33,7.32]
[1758666475592,1.16116977,215.38,215.32,8.08982764]
[1758666475785,4.1768,215.39,215.33,7.32]
[1758666475987,1.16116977,215.38,215.33,7.32]
[1758666476286,1.16116977,215.37,215.32,8.08982764]
[1758666476488,4.1768,215.39,215.33,7.32]
[1758666476685,1.16116982,215.38,215.32,8.08982764]
[1758666476890,1.16116982,215.37,215.33,7.32]
[1758666477191,4.1768,215.39,215.33,7.32]
[1758666477381,1.16116982,215.38,215.33,7.32]
[1758666477585,4.1768,215.39,215.33,7.32]
[1758666477586,1.16116982,215.37,215.33,7.32]
[1758666477786,4.1768,215.39,215.33,7.32]
[1758666477987,1.16116982,215.38,215.32,8.08982764]
[1758666478194,1.16116982,215.37,215.33,7.32]
[1758666478485,4.177,215.38,215.33,7.32]
[1758666478692,1.16116982,215.37,215.33,7.32]
[1758666478888,4.177,215.38,215.33,7.32]
[1758666479193,1.16116982,215.37,215.33,7.32]
[1758666479392,4.177,215.38,215.32,8.08982764]
[1758666479689,1.16116982,215.37,215.32,8.08982764]
[1758666479887,4.177,215.38,215.32,8.08982764]
[1758666480083,1.16116982,215.37,215.33,7.32]
[1758666480290,4.177,215.38,215.33,7.32]
[1758666480489,1.16116982,215.37,215.32,8.08982764]
[1758666480795,4.177,215.38,215.33,7.32]
[1758666480987,1.16116982,215.37,215.32,8.08982764]
[1758666481183,4.177,215.38,215.34,7.32]
[1758666481389,1.16116982,215.37,215.34,7.32]
[1758666481593,4.177,215.38,215.34,7.32]
[1758666481789,1.16116982,215.37,215.34,7.32]
[1758666482092,4.177,215.38,215.33,3.91182764]
[1758666482288,1.16116983,215.37,215.33,3.91182764]
[1758666482492,4.177,215.38,215.33,3.91182764]
[1758666482788,1.16116983,215.37,215.34,7.32]
[1758666482994,4.177,215.38,215.33,3.91182764]
[1758666483296,1.16116983,215.37,215.34,7.32]
[1758666483497,1.16116983,215.36,215.34,7.32]
[1758666483690,4.177,215.38,215.34,7.32]
[1758666483890,4.177,215.38,215.32,8.08982764]
[1758666483891,1.16120047,215.37,215.32,8.08982764]
[1758666484090,1.16120047,215.36,215.33,7.32]
[1758666484288,4.177,215.38,215.32,8.08982764]
[1758666484487,1.31586899,215.33,215.29,3.91182764]
[1758666484685,1.16156615,215.32,215.26,3.91182764]
[1758666484892,1.16156615,215.31,215.26,3.91182764]
[1758666485094,1.16156615,215.3,215.26,3.91182764]
[1758666485394,1.16156615,215.29,215.26,3.91182764]
[1758666485588,115.37586899,215.35,215.25,7.32]
[1758666485790,4.178,215.33,215.26,4.1791]
[1758666485990,4.178,215.33,215.27,7.32]
[1758666486894,5.49406899,215.32,215.25,7.32]
[1758666488001,4.1784,215.31,215.25,7.32]
[1758666489095,4.1786,215.3,215.23,3.91182764]
[1758666489400,4.1786,215.3,215.24,7.32]
[1758666490300,17.91069939,215.3,215.24,7.32]
[1758666490496,4.1786,215.3,215.24,7.32]
[1758666490701,5.49466899,215.29,215.23,11.23182764]
[1758666490996,5.49466899,215.29,215.23,7.32]
[1758666492600,1.31586899,215.29,215.23,7.32]
[1758666493193,1.31586899,215.26,215.17,3.91182764]
[1758666493399,1.31586899,215.21,215.15,7.09]
[1758666494500,5.49626899,215.21,215.15,7.09]
[1758666496308,1.31586899,215.17,215.08,7.09]
[1758666496602,1.31586899,215.14,215.08,7.09]
[1758666498306,1.31586899,215.16,215.08,7.09]
[1758666499598,5.49706899,215.16,215.08,11.2727]
[1758666499794,1.31586899,215.13,215.08,7.09]
[1758666500005,86.9365,215.18,215.08,7.09]